[Event "Seniors-LEM-65 Sachsen-Anhalt 2024"]
[Site "Magdeburg"]
[Date "2024.07.07"]
[Round "7.1"]
[White "Koehler, Gerhard"]
[Black "Schnelzer, Reinhold"]
[Result "1-0"]
[ECO "A22"]
[WhiteElo "2204"]
[BlackElo "2162"]
[Annotator "RC"]
[PlyCount "43"]
[EventDate "2024.06.25"]
[EventType "swiss"]
[EventCountry "GER"]
[SourceTitle "playchess.com"]
[Source "ChessBase"]
[SourceQuality "1"]
[TimeControl "40/5400+30:1800+30"]

1. c4 {[%emt 0:00:02]} e5 {[%emt 0:00:24]} 2. Nc3 {[%emt 0:00:20]} Nf6 {[%emt 0:00:13]} 3. g3 {[%emt 0:00:19]} Bb4 {[%emt 0:00:38]} 4. Bg2 {[%emt 0:00:25]} O-O {[%emt 0:00:23]} 5. Nf3 {[%emt 0:00:35]} e4 {[%emt 0:06:04]} 6. Nd4 {[%emt 0:01:35]} Re8 {[%emt 0:01:20]} 7. Qc2 {[%emt 0:05:25]} Bxc3 {[%emt 0:12:37]} 8. Qxc3 {[%emt 0:05:08]} c5 {[%emt 0:03:28]} 9. Nc2 {[%emt 0:02:53]} Nc6 {[%emt 0:09:53]} 10. O-O {[%emt 0:14:00]} d6 {[%emt 0:10:18]} 11. d3 {[%emt 0:07:59]} Bg4 {[%emt 0:06:15]} 12. Re1 {[%emt 0:07:23]} exd3 {[%emt 0:06:14]} 13. Qxd3 {[%emt 0:06:58]} Ne5 {[%emt 0:01:54]} 14. Qb3 {[%emt 0:03:28]} Rb8 {[%emt 0:01:20]} 15. f4 {[%emt 0:06:23]} Nc6 {[%emt 0:01:48]} 16. Qd3 {[%emt 0:00:13]} Qd7 {[%emt 0:08:55]} 17. Bd2 {[%emt 0:06:16]} a6 {[%emt 0:03:25]} 18. Bc3 {[%emt 0:00:57]} Qe7 {[%emt 0:02:33]} 19. e4 {[%emt 0:01:22]} Rbd8 {[%emt 0:02:22]} 20. h3 {[%emt 0:03:37]} Be6 21. Ne3 {[%emt 0:00:30]} h6 22. Nd5 {[%emt 0:00:30]} 1-0

[Event "Seniors-LEM-65 Sachsen-Anhalt 2024"]
[Site "Magdeburg"]
[Date "2024.07.07"]
[Round "7.3"]
[White "Jacob, Helmut"]
[Black "Kahe, Ralph"]
[Result "0-1"]
[ECO "B06"]
[WhiteElo "2047"]
[BlackElo "2129"]
[Annotator "RC"]
[PlyCount "74"]
[EventDate "2024.06.25"]
[EventType "swiss"]
[EventCountry "GER"]
[SourceTitle "playchess.com"]
[Source "ChessBase"]
[SourceQuality "1"]
[TimeControl "40/5400+30:1800+30"]

1. e4 {[%emt 0:00:04]} g6 {[%emt 0:00:06]} 2. d4 {[%emt 0:00:05]} Bg7 {[%emt 0:00:05]} 3. Nc3 {[%emt 0:00:05]} a6 {[%emt 0:00:04]} 4. Be3 {[%emt 0:00:17]} b5 {[%emt 0:00:16]} 5. a3 {[%emt 0:00:31]} d6 {[%emt 0:00:08]} 6. h3 {[%emt 0:01:57]} Nd7 {[%emt 0:00:11]} 7. Nge2 {[%emt 0:07:52]} Bb7 {[%emt 0:01:39]} 8. g4 {[%emt 0:05:08]} Ngf6 {[%emt 0:00:46]} 9. Bg2 {[%emt 0:00:18]} Nb6 {[%emt 0:00:23]} 10. b3 {[%emt 0:00:17]} O-O {[%emt 0:04:30]} 11. O-O {[%emt 0:01:19]} Nfd7 {[%emt 0:07:18]} 12. Qd2 {[%emt 0:01:55]} c5 {[%emt 0:00:23]} 13. f3 {[%emt 0:07:11]} Rc8 {[%emt 0:01:53]} 14. Nd1 {[%emt 0:06:43]} cxd4 {[%emt 0:01:07]} 15. Nxd4 {[%emt 0:02:36]} d5 {[%emt 0:01:24]} 16. Nf2 {[%emt 0:03:02]} e5 {[%emt 0:02:32]} 17. Ne2 {[%emt 0:00:18]} d4 {[%emt 0:00:07]} 18. Bg5 {[%emt 0:00:36]} f6 {[%emt 0:00:56]} 19. Bh4 {[%emt 0:00:20]} g5 {[%emt 0:00:32]} 20. Bg3 {[%emt 0:00:04]} Nc5 {[%emt 0:00:30]} 21. Nd3 {[%emt 0:03:46]} Nxd3 {[%emt 0:00:18]} 22. cxd3 {[%emt 0:01:52]} Rf7 {[%emt 0:00:05]} 23. Rfc1 {[%emt 0:01:39]} Bf8 {[%emt 0:00:23]} 24. b4 {[%emt 0:07:02]} Na4 {[%emt 0:01:23]} 25. Bf1 {[%emt 0:07:44]} Rfc7 {[%emt 0:00:14]} 26. Be1 {[%emt 0:05:40]} Qd7 {[%emt 0:05:27]} 27. Rxc7 {[%emt 0:04:46]} Rxc7 {[%emt 0:00:06]} 28. Rc1 {[%emt 0:00:34]} Bc8 {[%emt 0:00:32]} 29. Qa2+ {[%emt 0:04:25]} Kg7 {[%emt 0:01:22]} 30. Bd2 {[%emt 0:04:50]} Rxc1 {[%emt 0:00:30]} 31. Nxc1 {[%emt 0:01:07]} Qc6 {[%emt 0:00:10]} 32. Kf2 {[%emt 0:03:09]} Be6 {[%emt 0:00:17]} 33. Qb1 {[%emt 0:02:35]} Nc3 {[%emt 0:03:10]} 34. Qa1 {[%emt 0:03:14]} Nd1+ {[%emt 0:00:37]} 35. Ke1 {[%emt 0:04:44]} Qc2 {[%emt 0:00:43]} 36. Be2 {[%emt 0:04:22]} Nc3 {[%emt 0:01:49]} 37. Bxc3 {[%emt 0:01:52]} dxc3 {[%emt 0:00:12]} 0-1

[Event "Seniors-LEM-65 Sachsen-Anhalt 2024"]
[Site "Magdeburg"]
[Date "2024.07.07"]
[Round "7.5"]
[White "Schober, Ralf"]
[Black "Erler, Rainer"]
[Result "1/2-1/2"]
[ECO "D02"]
[WhiteElo "2090"]
[BlackElo "2121"]
[Annotator "RC"]
[PlyCount "59"]
[EventDate "2024.06.25"]
[EventType "swiss"]
[EventCountry "GER"]
[SourceTitle "playchess.com"]
[Source "ChessBase"]
[SourceQuality "1"]
[TimeControl "40/5400+30:1800+30"]

1. Nf3 {[%emt 0:00:04]} d5 {[%emt 0:00:06]} 2. d4 {[%emt 0:00:54]} c5 {[%emt 0:00:05]} 3. c3 {[%emt 0:03:25]} e6 {[%emt 0:00:36]} 4. Bf4 {[%emt 0:01:00]} Nc6 {[%emt 0:00:08]} 5. e3 {[%emt 0:00:12]} Qb6 {[%emt 0:02:20]} 6. Qc2 {[%emt 0:00:53]} Nf6 {[%emt 0:00:12]} 7. h3 {[%emt 0:00:07]} Bd7 {[%emt 0:00:29]} 8. Be2 {[%emt 0:00:14]} Rc8 {[%emt 0:00:15]} 9. dxc5 {[%emt 0:00:50]} Bxc5 {[%emt 0:00:16]} 10. Nbd2 {[%emt 0:00:14]} O-O {[%emt 0:24:34]} 11. O-O {[%emt 0:00:26]} Rfe8 {[%emt 0:09:06]} 12. Ne5 {[%emt 0:13:31]} Nxe5 {[%emt 0:05:19]} 13. Bxe5 {[%emt 0:00:34]} Bb5 {[%emt 0:00:57]} 14. Bxb5 {[%emt 0:03:45]} Qxb5 {[%emt 0:00:01]} 15. Qb3 {[%emt 0:00:37]} Qxb3 {[%emt 0:04:39]} 16. Nxb3 {[%emt 0:00:20]} Nd7 {[%emt 0:00:03]} 17. Bg3 {[%emt 0:01:19]} Bb6 {[%emt 0:00:25]} 18. Rfd1 {[%emt 0:00:55]} Nc5 {[%emt 0:09:50]} 19. Nxc5 {[%emt 0:02:13]} Bxc5 {[%emt 0:01:00]} 20. a4 {[%emt 0:01:24]} f6 {[%emt 0:03:51]} 21. Kf1 {[%emt 0:01:47]} Kf7 {[%emt 0:05:22]} 22. Ke2 {[%emt 0:00:02]} Red8 {[%emt 0:00:22]} 23. f3 {[%emt 0:00:28]} e5 {[%emt 0:01:22]} 24. e4 {[%emt 0:00:30]} d4 {[%emt 0:02:54]} 25. Bf2 {[%emt 0:07:44]} Ke7 {[%emt 0:13:06]} 26. cxd4 {[%emt 0:06:30]} Bxd4 {[%emt 0:00:22]} 27. Bxd4 {[%emt 0:00:12]} Rc2+ {[%emt 0:00:15]} 28. Rd2 {[%emt 0:00:08]} Rxd2+ {[%emt 0:00:07]} 29. Kxd2 {[%emt 0:00:01]} Rxd4+ {[%emt 0:00:02]} 30. Kc3 {[%emt 0:00:26]} 1/2-1/2

[Event "Seniors-LEM-65 Sachsen-Anhalt 2024"]
[Site "Magdeburg"]
[Date "2024.07.07"]
[Round "7.6"]
[White "Krueger, Erich"]
[Black "Haase, Reinhard"]
[Result "0-1"]
[ECO "D32"]
[WhiteElo "2095"]
[BlackElo "2044"]
[Annotator "RC"]
[PlyCount "61"]
[EventDate "2024.06.25"]
[EventType "swiss"]
[EventCountry "GER"]
[SourceTitle "playchess.com"]
[Source "ChessBase"]
[SourceQuality "1"]
[TimeControl "40/5400+30:1800+30"]

1. d4 {[%emt 0:00:04]} d5 {[%emt 0:00:06]} 2. c4 {[%emt 0:00:08]} e6 {[%emt 0:00:11]} 3. Nc3 {[%emt 0:00:08]} c5 {[%emt 0:00:08]} 4. cxd5 {[%emt 0:00:09]} cxd4 {[%emt 0:00:05]} 5. Qa4+ {[%emt 0:00:41]} Bd7 {[%emt 0:00:10]} 6. Qxd4 {[%emt 0:00:09]} exd5 {[%emt 0:00:10]} 7. Qxd5 {[%emt 0:00:20]} Nf6 {[%emt 0:00:18]} 8. Qd1 {[%emt 0:00:08]} Bc5 {[%emt 0:00:48]} 9. Nf3 {[%emt 0:01:41]} O-O {[%emt 0:00:49]} 10. e3 {[%emt 0:01:18]} Nc6 {[%emt 0:04:53]} 11. Be2 {[%emt 0:01:44]} Qe7 {[%emt 0:00:46]} 12. O-O {[%emt 0:01:42]} Rfd8 {[%emt 0:01:04]} 13. a3 {[%emt 0:10:25]} a5 {[%emt 0:00:48]} 14. Qc2 {[%emt 0:01:53]} Rac8 {[%emt 0:02:17]} 15. Rd1 {[%emt 0:04:55]} Ba7 {[%emt 0:05:02]} 16. Bd2 {[%emt 0:04:08]} Ne5 {[%emt 0:03:14]} 17. Nxe5 {[%emt 0:06:56]} Qxe5 {[%emt 0:00:14]} 18. Bf3 {[%emt 0:01:47]} Bg4 {[%emt 0:03:24]} 19. Be1 {[%emt 0:07:40]} Bb8 {[%emt 0:03:04]} 20. h3 {[%emt 0:06:39]} Bxf3 {[%emt 0:03:39]} 21. Rxd8+ {[%emt 0:03:08]} Rxd8 {[%emt 0:00:12]} 22. gxf3 {[%emt 0:00:13]} Qh2+ {[%emt 0:00:29]} 23. Kf1 {[%emt 0:00:14]} Qxh3+ {[%emt 0:04:27]} 24. Ke2 {[%emt 0:00:16]} Qc8 {[%emt 0:07:02]} 25. Qb3 {[%emt 0:03:49]} h5 {[%emt 0:04:31]} 26. Nb5 {[%emt 0:00:58]} b6 {[%emt 0:03:18]} 27. Bc3 {[%emt 0:03:51]} Nd5 {[%emt 0:02:22]} 28. Bd4 {[%emt 0:00:52]} Qe6 {[%emt 0:00:28]} 29. Kf1 {[%emt 0:04:26]} Re8 {[%emt 0:07:36]} 30. Qd1 {[%emt 0:05:31]} Nf4 {[%emt 0:05:28]} 31. Rc1 {[%emt 0:05:17]} 0-1

[Event "Seniors-LEM-65 Sachsen-Anhalt 2024"]
[Site "Magdeburg"]
[Date "2024.07.07"]
[Round "7.7"]
[White "Leibovitch, Iziaslav"]
[Black "Renner, Bernd"]
[Result "1-0"]
[ECO "A05"]
[WhiteElo "2105"]
[BlackElo "1997"]
[Annotator "RC"]
[PlyCount "59"]
[EventDate "2024.06.25"]
[EventType "swiss"]
[EventCountry "GER"]
[SourceTitle "playchess.com"]
[Source "ChessBase"]
[SourceQuality "1"]
[TimeControl "40/5400+30:1800+30"]

1. Nf3 {[%emt 0:00:14]} Nf6 {[%emt 0:00:08]} 2. g3 {[%emt 0:00:07]} g6 {[%emt 0:00:05]} 3. Bg2 {[%emt 0:00:05]} Bg7 {[%emt 0:00:05]} 4. O-O {[%emt 0:00:08]} O-O {[%emt 0:00:05]} 5. d3 {[%emt 0:00:56]} c5 {[%emt 0:00:30]} 6. e4 {[%emt 0:00:41]} d6 {[%emt 0:00:16]} 7. c3 {[%emt 0:01:27]} Nc6 {[%emt 0:00:45]} 8. Nbd2 {[%emt 0:01:22]} Bg4 {[%emt 0:05:37]} 9. h3 {[%emt 0:01:40]} Bxf3 {[%emt 0:00:06]} 10. Qxf3 {[%emt 0:01:05]} e5 {[%emt 0:00:32]} 11. a4 {[%emt 0:01:40]} b6 {[%emt 0:02:29]} 12. Nc4 {[%emt 0:11:14]} Ne8 {[%emt 0:02:06]} 13. Qe2 {[%emt 0:02:05]} Rc8 {[%emt 0:08:13]} 14. Be3 {[%emt 0:10:11]} Nc7 {[%emt 0:03:20]} 15. f4 {[%emt 0:06:05]} Qe7 {[%emt 0:05:44]} 16. f5 {[%emt 0:01:30]} Rcd8 {[%emt 0:18:59]} 17. Qf3 {[%emt 0:06:21]} f6 {[%emt 0:03:50]} 18. fxg6 {[%emt 0:00:24]} hxg6 {[%emt 0:00:08]} 19. Qg4 {[%emt 0:01:14]} Kf7 {[%emt 0:04:29]} 20. Rf2 {[%emt 0:09:49]} Qe6 {[%emt 0:00:42]} 21. Qe2 {[%emt 0:11:27]} Ke7 {[%emt 0:01:04]} 22. a5 {[%emt 0:08:08]} b5 {[%emt 0:00:53]} 23. Nd2 {[%emt 0:00:44]} a6 {[%emt 0:02:45]} 24. Nf3 {[%emt 0:03:55]} Nb8 {[%emt 0:06:03]} 25. Nh4 {[%emt 0:00:31]} Kf7 {[%emt 0:02:59]} 26. Raf1 Ne8 {[%emt 0:00:30]} 27. Nf3 Ke7 {[%emt 0:00:30]} 28. d4 c4 {[%emt 0:00:30]} 29. d5 Qg8 {[%emt 0:00:30]} 30. Nh4 1-0

[Event "Seniors-LEM-65 Sachsen-Anhalt 2024"]
[Site "Magdeburg"]
[Date "2024.07.07"]
[Round "7.8"]
[White "Kolthoff, Siegmund"]
[Black "Cordes, Lothar"]
[Result "1-0"]
[ECO "E01"]
[WhiteElo "2090"]
[BlackElo "1858"]
[Annotator "NA RC"]
[PlyCount "61"]
[EventDate "2024.06.25"]
[EventType "swiss"]
[EventCountry "GER"]
[SourceTitle "playchess.com"]
[Source "ChessBase"]
[SourceQuality "1"]
[TimeControl "40/5400+30:1800+30"]

1. d4 {[%emt 0:00:03]} Nf6 {[%emt 0:00:07]} 2. c4 {[%emt 0:00:16]} e6 {[%emt 0:00:07]} 3. g3 {[%emt 0:00:20]} Bb4+ {[%emt 0:00:58]} 4. Nd2 {[%emt 0:00:57]} O-O {[%emt 0:00:17]} 5. Bg2 {[%emt 0:00:25]} d5 {[%emt 0:00:22]} 6. Ngf3 {[%emt 0:00:21]} b6 {[%emt 0:00:28] E01: Catalan: Early deviations.} 7. cxd5 {[%emt 0:07:28]} exd5 {[%emt 0:00:11]} 8. O-O {[%emt 0:00:09]} Re8 {[%emt 0:02:11]} 9. a3 {[%emt 0:01:14]} Bd6 {[%emt 0:00:51]} 10. Nb1 {[%emt 0:00:21]} Ne4 {[%emt 0:03:32]} 11. Re1 {[%emt 0:02:37]} Nd7 {[%emt 0:01:37]} 12. Qb3 {[%emt 0:00:40]} Ndf6 {[%emt 0:02:15]} 13. Bg5 {[%emt 0:02:11]} h6 {[%emt 0:03:22]} 14. Bxf6 {[%emt 0:00:07]} Nxf6 {[%emt 0:00:06]} 15. Nc3 {[%emt 0:00:31]} Bb7 {[%emt 0:03:46]} 16. Nb5 {[%emt 0:02:58]} c6 {[%emt 0:02:48]} 17. Nxd6 {[%emt 0:00:34]} Qxd6 {[%emt 0:00:05]} 18. Rac1 {[%emt 0:01:15]} Nd7 {[%emt 0:06:32]} 19. Qc2 {[%emt 0:06:39]} Rac8 {[%emt 0:00:54]} 20. Bh3 {[%emt 0:01:13]} Rc7 {[%emt 0:00:54]} 21. b4 {[%emt 0:00:27]} a5 {[%emt 0:09:52]} 22. bxa5 {[%emt 0:03:57]} bxa5 {[%emt 0:03:59]} 23. Qc3 {[%emt 0:05:27]} Nb6 {[%emt 0:03:15]} 24. Ne5 {[%emt 0:08:46]} c5 {[%emt 0:10:10]} 25. e3 {[%emt 0:09:21]} a4 $2 {[%emt 0:03:14]} (25... Nc4 $1 $11 {and Black is okay.}) 26. dxc5 {[%emt 0:12:56]} Qxe5 {[%emt 0:09:17]} 27. Qxe5 {[%emt 0:00:50]} Rxe5 {[%emt 0:00:06]} 28. cxb6 {[%emt 0:00:12]} Rc4 $18 {[%emt 0:01:23]} 29. Bf1 {[%emt 0:04:29]} Rc8 {[%emt 0:02:28]} 30. Rxc8+ {[%emt 0:01:09]} Bxc8 {[%emt 0:00:05]} 31. Rc1 {[%emt 0:00:07]} 1-0

[Event "Seniors-LEM-65 Sachsen-Anhalt 2024"]
[Site "Magdeburg"]
[Date "2024.07.07"]
[Round "7.9"]
[White "Klettke, Wolfgang"]
[Black "Waagener, Ulrich"]
[Result "1/2-1/2"]
[ECO "B22"]
[WhiteElo "2008"]
[BlackElo "2080"]
[Annotator "RC"]
[PlyCount "53"]
[EventDate "2024.06.25"]
[EventType "swiss"]
[EventCountry "GER"]
[SourceTitle "playchess.com"]
[Source "ChessBase"]
[SourceQuality "1"]
[TimeControl "40/5400+30:1800+30"]

1. e4 {[%emt 0:00:13]} c5 {[%emt 0:01:02]} 2. c3 {[%emt 0:01:33]} Qa5 {[%emt 0:04:39]} 3. Nf3 {[%emt 0:02:59]} Nc6 {[%emt 0:01:01]} 4. Be2 {[%emt 0:00:41]} Nf6 {[%emt 0:01:36]} 5. Qc2 {[%emt 0:02:55]} d6 {[%emt 0:04:16]} 6. h3 {[%emt 0:03:44]} e6 {[%emt 0:04:00]} 7. O-O {[%emt 0:00:20]} Be7 {[%emt 0:01:00]} 8. Na3 {[%emt 0:02:40]} O-O {[%emt 0:03:39]} 9. Nc4 {[%emt 0:03:40]} Qc7 {[%emt 0:00:21]} 10. d4 {[%emt 0:02:13]} b5 {[%emt 0:06:49]} 11. Ne3 {[%emt 0:02:14]} cxd4 {[%emt 0:05:29]} 12. cxd4 {[%emt 0:01:39]} Qb6 {[%emt 0:00:33]} 13. d5 {[%emt 0:01:20]} Ne5 {[%emt 0:03:24]} 14. dxe6 {[%emt 0:11:54]} Bxe6 {[%emt 0:02:42]} 15. Nf5 {[%emt 0:02:23]} Bxf5 {[%emt 0:02:01]} 16. exf5 {[%emt 0:00:02]} Rfc8 {[%emt 0:01:32]} 17. Qd1 {[%emt 0:00:02]} h6 {[%emt 0:07:35]} 18. Be3 {[%emt 0:01:25]} Qb7 {[%emt 0:00:36]} 19. Qb3 {[%emt 0:13:56]} a6 {[%emt 0:07:11]} 20. Bd4 {[%emt 0:06:18]} Nc4 {[%emt 0:01:49]} 21. Rac1 {[%emt 0:01:41]} d5 {[%emt 0:01:19]} 22. Qd3 {[%emt 0:04:03]} Ne4 {[%emt 0:02:07]} 23. b3 {[%emt 0:00:44]} Ncd6 {[%emt 0:00:28]} 24. g4 {[%emt 0:00:24]} Ne8 {[%emt 0:13:58]} 25. Kg2 {[%emt 0:02:47]} Ba3 {[%emt 0:00:45]} 26. Rxc8 {[%emt 0:02:10]} Rxc8 {[%emt 0:00:09]} 27. Nd2 {[%emt 0:00:31]} 1/2-1/2

[Event "Seniors-LEM-65 Sachsen-Anhalt 2024"]
[Site "Magdeburg"]
[Date "2024.07.07"]
[Round "7.10"]
[White "Ruether, Rudolf"]
[Black "Gehrmann, Rudolf-Rainer"]
[Result "1-0"]
[ECO "D60"]
[WhiteElo "2065"]
[BlackElo "1980"]
[Annotator "RC"]
[PlyCount "81"]
[EventDate "2024.06.25"]
[EventType "swiss"]
[EventCountry "GER"]
[SourceTitle "playchess.com"]
[Source "ChessBase"]
[SourceQuality "1"]
[TimeControl "40/5400+30:1800+30"]

1. d4 {[%emt 0:00:09]} Nf6 {[%emt 0:00:32]} 2. c4 {[%emt 0:00:13]} e6 {[%emt 0:00:30]} 3. Nc3 {[%emt 0:00:19]} d5 {[%emt 0:00:43]} 4. Bg5 {[%emt 0:00:17]} Be7 {[%emt 0:00:07]} 5. e3 {[%emt 0:00:40]} O-O {[%emt 0:00:11]} 6. Nf3 {[%emt 0:00:13]} Nbd7 {[%emt 0:01:24]} 7. cxd5 {[%emt 0:01:31]} Nxd5 {[%emt 0:01:08]} 8. Bxe7 {[%emt 0:02:21]} Qxe7 {[%emt 0:01:19]} 9. Bd3 {[%emt 0:05:53]} Nxc3 {[%emt 0:03:40]} 10. bxc3 {[%emt 0:00:12]} c5 {[%emt 0:00:11]} 11. O-O {[%emt 0:01:33]} Nf6 {[%emt 0:00:18]} 12. a4 {[%emt 0:05:25]} cxd4 {[%emt 0:01:04]} 13. cxd4 {[%emt 0:01:06]} b6 {[%emt 0:00:51]} 14. Qe2 {[%emt 0:13:25]} Bb7 {[%emt 0:02:53]} 15. a5 {[%emt 0:08:53]} Be4 {[%emt 0:06:36]} 16. Ne5 {[%emt 0:06:50]} Bxd3 {[%emt 0:01:27]} 17. Qxd3 {[%emt 0:00:28]} Nd7 {[%emt 0:01:37]} 18. Qb5 {[%emt 0:08:30]} Nxe5 {[%emt 0:02:11]} 19. Qxe5 {[%emt 0:00:14]} Qb7 {[%emt 0:01:39]} 20. Rfb1 {[%emt 0:02:20]} Rfd8 {[%emt 0:02:31]} 21. axb6 {[%emt 0:08:41]} axb6 {[%emt 0:00:07]} 22. Rxa8 {[%emt 0:00:34]} Rxa8 {[%emt 0:00:36]} 23. Qb5 {[%emt 0:01:13]} h6 {[%emt 0:02:35]} 24. h3 {[%emt 0:01:08]} Rb8 {[%emt 0:00:10]} 25. f3 {[%emt 0:01:28]} Qc7 {[%emt 0:00:34]} 26. e4 {[%emt 0:29:54]} Qg3 {[%emt 1:08:36]} 27. d5 {[%emt 0:00:30]} exd5 {[%emt 0:00:30]} 28. exd5 {[%emt 0:00:00]} Rc8 29. Qxb6 {[%emt 0:00:00]} Qg5 30. Qd4 {[%emt 0:01:30]} Rc1+ 31. Rxc1 Qxc1+ 32. Kh2 Qc7+ 33. f4 Qd7 34. Kg3 f6 35. Kf3 Qd6 36. Qc4 Kf7 37. Qe4 g6 38. Qc4 g5 39. fxg5 hxg5 40. Qe4 Qd7 41. Qh7+ 1-0

[Event "Seniors-LEM-65 Sachsen-Anhalt 2024"]
[Site "Magdeburg"]
[Date "2024.07.07"]
[Round "7.11"]
[White "Matthey, Harald"]
[Black "Just, Joachim"]
[Result "1-0"]
[ECO "A13"]
[WhiteElo "2064"]
[BlackElo "1909"]
[Annotator "RC"]
[PlyCount "63"]
[EventDate "2024.06.25"]
[EventType "swiss"]
[EventCountry "GER"]
[SourceTitle "playchess.com"]
[Source "ChessBase"]
[SourceQuality "1"]
[TimeControl "40/5400+30:1800+30"]

1. Nf3 {[%emt 0:00:03]} d5 {[%emt 0:00:17]} 2. g3 {[%emt 0:00:16]} Nf6 {[%emt 0:00:19]} 3. Bg2 {[%emt 0:00:31]} c6 {[%emt 0:00:53]} 4. O-O {[%emt 0:01:08]} Nbd7 {[%emt 0:00:34]} 5. c4 {[%emt 0:04:49]} e6 {[%emt 0:00:53]} 6. b3 {[%emt 0:00:44]} Be7 {[%emt 0:00:51]} 7. Bb2 {[%emt 0:01:18]} dxc4 {[%emt 0:00:23]} 8. bxc4 {[%emt 0:00:09]} Qa5 {[%emt 0:00:06]} 9. d3 {[%emt 0:09:01]} O-O {[%emt 0:01:24]} 10. Nbd2 {[%emt 0:01:11]} Qh5 {[%emt 0:00:16]} 11. h3 {[%emt 0:07:16]} Re8 {[%emt 0:01:27]} 12. e4 {[%emt 0:03:42]} Nc5 {[%emt 0:04:15]} 13. g4 {[%emt 0:04:12]} Nxg4 {[%emt 0:00:34]} 14. hxg4 {[%emt 0:00:12]} Qxg4 {[%emt 0:00:11]} 15. Qc2 {[%emt 0:03:56]} Bf6 {[%emt 0:02:35]} 16. e5 {[%emt 0:01:35]} Bg5 {[%emt 0:01:02]} 17. Nxg5 {[%emt 0:01:12]} Qxg5 {[%emt 0:00:10]} 18. d4 {[%emt 0:00:54]} Nd7 {[%emt 0:01:02]} 19. f4 {[%emt 0:00:24]} Qh6 {[%emt 0:00:58]} 20. Rae1 {[%emt 0:02:58]} f5 {[%emt 0:00:26]} 21. d5 {[%emt 0:02:39]} cxd5 {[%emt 0:02:32]} 22. cxd5 {[%emt 0:00:23]} Nf8 {[%emt 0:00:29]} 23. d6 {[%emt 0:08:33]} Bd7 {[%emt 0:01:07]} 24. Bxb7 {[%emt 0:05:51]} Rab8 {[%emt 0:00:53]} 25. Qc7 {[%emt 0:00:41]} Rxb7 {[%emt 0:00:31]} 26. Qxb7 {[%emt 0:00:21]} Ba4 {[%emt 0:02:32]} 27. Re2 {[%emt 0:03:00]} Bc2 {[%emt 0:00:30]} 28. Qc6 {[%emt 0:01:13]} Qh5 {[%emt 0:03:57]} 29. Rh2 {[%emt 0:01:47]} Qg4+ {[%emt 0:02:46]} 30. Rg2 {[%emt 0:00:32]} Qh3 {[%emt 0:00:12]} 31. Qxe8 {[%emt 0:00:41]} Qe3+ {[%emt 0:00:18]} 32. Kh2 {[%emt 0:00:40]} 1-0

[Event "Seniors-LEM-65 Sachsen-Anhalt 2024"]
[Site "Magdeburg"]
[Date "2024.07.07"]
[Round "7.12"]
[White "Hess, Juergen"]
[Black "Krueger, Wolfgang"]
[Result "0-1"]
[ECO "B38"]
[WhiteElo "1958"]
[BlackElo "2054"]
[Annotator "RC"]
[PlyCount "41"]
[EventDate "2024.06.25"]
[EventType "swiss"]
[EventCountry "GER"]
[SourceTitle "playchess.com"]
[Source "ChessBase"]
[SourceQuality "1"]
[TimeControl "40/5400+30:1800+30"]

1. e4 {[%emt 0:00:35]} c5 {[%emt 0:00:10]} 2. Nf3 {[%emt 0:00:20]} Nc6 {[%emt 0:00:07]} 3. d4 {[%emt 0:00:26]} cxd4 {[%emt 0:00:06]} 4. Nxd4 {[%emt 0:00:11]} g6 {[%emt 0:01:51]} 5. c4 {[%emt 0:01:31]} Bg7 {[%emt 0:02:31]} 6. Be3 {[%emt 0:00:44]} Nf6 {[%emt 0:04:39]} 7. Nc3 {[%emt 0:00:42]} O-O {[%emt 0:07:51]} 8. Be2 {[%emt 0:08:24]} d6 {[%emt 0:01:02]} 9. f3 {[%emt 0:05:02]} Nxd4 {[%emt 0:09:19]} 10. Bxd4 {[%emt 0:02:48]} Be6 {[%emt 0:00:09]} 11. O-O {[%emt 0:09:17]} Nd7 {[%emt 0:03:27]} 12. Bxg7 {[%emt 0:01:02]} Kxg7 {[%emt 0:00:03]} 13. Qd4+ {[%emt 0:00:39]} Kg8 {[%emt 0:01:24]} 14. Rfc1 {[%emt 0:11:10]} Qb6 {[%emt 0:09:26]} 15. Nb5 {[%emt 0:08:17]} Rfc8 {[%emt 0:06:49]} 16. a4 {[%emt 0:13:05]} a5 {[%emt 0:04:50]} 17. Qxb6 {[%emt 0:03:44]} Nxb6 {[%emt 0:00:21]} 18. b3 {[%emt 0:01:19]} Nd7 {[%emt 0:01:27]} 19. Rc3 {[%emt 0:07:29]} Nc5 {[%emt 0:09:54]} 20. Kf2 {[%emt 0:03:45]} Bd7 {[%emt 0:03:07]} 21. Nd4 {[%emt 0:01:13]} 0-1

[Event "Seniors-LEM-65 Sachsen-Anhalt 2024"]
[Site "Magdeburg"]
[Date "2024.07.07"]
[Round "7.13"]
[White "Wolff, Stefan"]
[Black "Lapp, Karl"]
[Result "1/2-1/2"]
[ECO "A28"]
[WhiteElo "1956"]
[BlackElo "2001"]
[Annotator "RC"]
[PlyCount "32"]
[EventDate "2024.06.25"]
[EventType "swiss"]
[EventCountry "GER"]
[SourceTitle "playchess.com"]
[Source "ChessBase"]
[SourceQuality "1"]
[TimeControl "40/5400+30:1800+30"]

1. c4 {[%emt 0:00:02]} e5 {[%emt 0:00:31]} 2. Nc3 {[%emt 0:00:05]} Nf6 {[%emt 0:00:08]} 3. Nf3 {[%emt 0:00:28]} Nc6 {[%emt 0:00:15]} 4. d4 {[%emt 0:00:29]} exd4 {[%emt 0:00:35]} 5. Nxd4 {[%emt 0:00:05]} Bb4 {[%emt 0:01:10]} 6. Bg5 {[%emt 0:00:10]} h6 {[%emt 0:00:27]} 7. Bh4 {[%emt 0:00:04]} O-O {[%emt 0:00:50]} 8. Rc1 {[%emt 0:07:04]} Re8 {[%emt 0:02:10]} 9. e3 {[%emt 0:02:09]} Nxd4 {[%emt 0:07:02]} 10. Qxd4 {[%emt 0:00:46]} Bxc3+ {[%emt 0:02:30]} 11. Qxc3 {[%emt 0:08:26]} g5 {[%emt 0:04:06]} 12. Bg3 {[%emt 0:00:05]} Ne4 {[%emt 0:00:06]} 13. Qc2 {[%emt 0:01:27]} d6 {[%emt 0:20:00]} 14. Bd3 {[%emt 0:02:50]} Bf5 {[%emt 0:00:50]} 15. O-O {[%emt 0:01:16]} Qe7 {[%emt 0:03:57]} 16. Rfe1 {[%emt 0:04:10]} b6 {[%emt 0:01:34]} 1/2-1/2

[Event "Seniors-LEM-65 Sachsen-Anhalt 2024"]
[Site "Magdeburg"]
[Date "2024.07.07"]
[Round "7.14"]
[White "Luebeck, Stephan"]
[Black "Schmidt, Gerhard"]
[Result "1/2-1/2"]
[ECO "D05"]
[WhiteElo "1942"]
[BlackElo "2112"]
[Annotator "RC"]
[PlyCount "35"]
[EventDate "2024.06.25"]
[EventType "swiss"]
[EventCountry "GER"]
[SourceTitle "playchess.com"]
[Source "ChessBase"]
[SourceQuality "1"]
[TimeControl "40/5400+30:1800+30"]

1. d4 {[%emt 0:00:03]} Nf6 {[%emt 0:00:14]} 2. Nf3 {[%emt 0:00:05]} d5 {[%emt 0:00:36]} 3. e3 {[%emt 0:00:05]} e6 {[%emt 0:03:14]} 4. Nbd2 {[%emt 0:00:10]} Be7 {[%emt 0:00:20]} 5. Bd3 {[%emt 0:00:07]} c5 {[%emt 0:03:08]} 6. dxc5 {[%emt 0:00:14]} Bxc5 {[%emt 0:00:45]} 7. O-O {[%emt 0:00:23]} Nc6 {[%emt 0:07:02]} 8. c3 {[%emt 0:00:06]} O-O {[%emt 0:11:36]} 9. e4 {[%emt 0:00:05]} Be7 {[%emt 0:22:11]} 10. exd5 {[%emt 0:15:14]} exd5 {[%emt 0:07:33]} 11. Re1 {[%emt 0:02:46]} Bg4 {[%emt 0:01:00]} 12. Nb3 {[%emt 0:00:32]} Re8 {[%emt 0:01:56]} 13. Be3 {[%emt 0:07:12]} Ne5 {[%emt 0:09:13]} 14. Be2 {[%emt 0:00:59]} Nc4 {[%emt 0:00:42]} 15. Bxc4 {[%emt 0:02:32]} dxc4 {[%emt 0:00:54]} 16. Nbd4 {[%emt 0:00:03]} Nd5 {[%emt 0:01:22]} 17. h3 {[%emt 0:02:15]} Bh5 {[%emt 0:02:39]} 18. Qa4 {[%emt 0:06:51]} 1/2-1/2